fUST/lending_fUST_20241203
["ID","MTS","AMOUNT","RATE_DAILY","PERIOD"]
[344004849,1733179847719,-500.0,0.00027397,7]
[344004850,1733179847728,-500.0,0.00027397,7]
[344004851,1733179847737,-500.0,0.00027397,7]
[344004852,1733179847746,-500.0,0.00027397,7]
[344004853,1733179847756,-500.0,0.00027397,7]
[344004854,1733179847767,-500.0,0.00027397,7]
[344004855,1733179847777,-500.0,0.00027397,7]
[344004856,1733179847786,-500.0,0.00027397,7]
[344004857,1733179847796,-500.0,0.00027397,7]
[344004858,1733179847806,-500.0,0.00027397,7]
[344004859,1733179847815,-562.10372297,0.00027397,7]
[344004860,1733179847824,-500.88741233,0.00027397,7]
[344004861,1733179847834,-8603.7,0.00027397,7]
[344004862,1733179847844,-500.0,0.00027397,7]
[344004863,1733179847853,-500.0,0.00027397,7]
[344004864,1733179847863,-500.0,0.00027397,7]
[344004865,1733179847872,-500.0,0.00027397,7]
[344004866,1733179847882,-500.0,0.00027397,7]
[344004867,1733179847892,-500.0,0.00027397,7]
[344004868,1733179847902,-500.0,0.00027397,2]
[344004869,1733179847912,-500.0,0.00027397,7]
[344004870,1733179847922,-500.0,0.00027397,7]
[344004871,1733179847931,-500.0,0.00027397,7]
[344004872,1733179847942,-500.0,0.00027397,7]
[344004873,1733179847951,-500.0,0.00027397,7]
[344004874,1733179847963,-500.0,0.00027397,7]
[344004875,1733179847973,-500.0,0.00027397,7]
[344004876,1733179847983,-500.0,0.00027397,7]
[344004877,1733179847993,-500.0,0.00027397,7]
[344004878,1733179848002,-1089.16,0.00027397,7]
[344004879,1733179848012,-500.0,0.00027397,7]
[344004880,1733179848023,-500.0,0.00027397,7]
[344004881,1733179848032,-500.0,0.00027397,7]
[344004882,1733179848042,-500.0,0.00027397,7]
[344004883,1733179848052,-439.60942689,0.00027397,7]
[344004884,1733179848062,-500.0,0.00027397,7]
[344004885,1733179848072,-3286.43,0.00027397,7]
[344004886,1733179848081,-500.0,0.00027397,7]
[344004887,1733179848092,-500.0,0.00027397,7]
[344004888,1733179848102,-500.0,0.00027397,7]
[344004889,1733179848112,-500.0,0.00027397,7]
[344004890,1733179848123,-500.0,0.00027397,7]
[344004891,1733179848135,-210.21,0.00027397,7]
[344004892,1733179848146,-500.0,0.00027397,7]
[344004893,1733179848157,-500.0,0.00027397,7]
[344004894,1733179848169,-506.62220372,0.00027397,7]
[344004895,1733179848182,-500.0,0.00027397,7]
[344004896,1733179848194,-500.0,0.00027397,7]
[344004897,1733179848206,-500.0,0.00027397,7]
[344004898,1733179848216,-500.0,0.00027397,2]
[344004899,1733179848227,-500.0,0.00027397,7]
[344004900,1733179848237,-500.0,0.00027397,7]
[344004901,1733179848247,-500.0,0.00027397,7]
[344004902,1733179848256,-500.0,0.00027397,7]
[344004903,1733179848266,-500.0,0.00027397,7]
[344004904,1733179848275,-500.0,0.00027397,7]
[344004905,1733179848285,-500.0,0.00027397,7]
[344004906,1733179848295,-500.0,0.00027397,7]
[344004907,1733179848304,-500.0,0.00027397,7]
[344004908,1733179848313,-500.0,0.00027397,7]
[344004909,1733179848323,-500.0,0.00027397,7]
[344004910,1733179848332,-500.0,0.00027397,7]
[344004911,1733179848342,-552.54277647,0.00027397,7]
[344004912,1733179848351,-502.31937771,0.00027397,7]
[344004913,1733179848361,-500.0,0.00027397,7]
[344004914,1733179848370,-537.12476998,0.00027397,7]
[344004915,1733179848380,-500.0,0.00027397,7]
[344004916,1733179848392,-500.0,0.00027397,7]
[344004917,1733179848402,-500.0,0.00027397,7]
[344004918,1733179848411,-203.07246475,0.00027397,7]
[344004919,1733179848421,-500.0,0.00027397,7]
[344004920,1733179848430,-500.0,0.00027397,7]
[344004921,1733179848439,-500.0,0.00027397,7]
[344004922,1733179848449,-150.14,0.00027397,2]
[344004923,1733179848460,-638.53,0.00027397,7]
[344004924,1733179848470,-500.0,0.00027397,7]
[344004925,1733179848480,-500.0,0.00027397,7]
[344004926,1733179848489,-500.0,0.00027397,7]
[344004927,1733179848499,-150.17,0.00027397,7]
[344004928,1733179848508,-500.0,0.00027397,7]
[344004929,1733179848518,-500.0,0.00027397,7]
[344004930,1733179848527,-500.0,0.00027397,7]
[344004931,1733179848537,-500.0,0.00027397,7]
[344004932,1733179848546,-500.0,0.00027397,7]
[344004933,1733179848612,-500.0,0.00027397,7]
[344004934,1733179848622,-500.0,0.00027397,7]
[344004935,1733179848632,-500.0,0.00027397,7]
[344004936,1733179848641,-500.0,0.00027397,7]
[344004937,1733179848650,-500.0,0.00027397,7]
[344004938,1733179848660,-500.0,0.00027397,7]
[344004939,1733179848670,-500.0,0.00027397,7]
[344004940,1733179848680,-150.14,0.00027397,2]
[344004941,1733179848690,-500.0,0.00027397,7]
[344004942,1733179848699,-501.42934999,0.00027397,7]
[344004943,1733179848710,-314.8948856,0.00027397,7]
[344004944,1733179848719,-758.08,0.00027397,7]
[344004945,1733179848728,-500.0,0.00027397,7]
[344004946,1733179848738,-500.0,0.00027397,7]
[344004947,1733179848747,-500.0,0.00027397,7]
[344004948,1733179848757,-500.0,0.00027397,7]
[344004949,1733179848767,-500.0,0.00027397,7]
[344004950,1733179848778,-500.0,0.00027397,7]
[344004951,1733179848788,-206.49876854,0.00027397,7]
[344004952,1733179848797,-500.0,0.00027397,7]
[344004953,1733179848808,-500.0,0.00027397,7]
[344004954,1733179848818,-500.0,0.00027397,7]
[344004955,1733179848828,-500.0,0.00027397,7]
[344004956,1733179848838,-500.0,0.00027397,7]
[344004957,1733179848853,-500.0,0.00027397,7]
[344004958,1733179848863,-500.0,0.00027397,5]
[344004959,1733179848873,-500.0,0.00027397,7]
[344004960,1733179848882,-500.0,0.00027397,7]
[344004961,1733179848892,-272.06717,0.00027397,7]
[344004962,1733179848903,-272.06717,0.00027397,7]
[344004963,1733179848913,-272.06717,0.00027397,7]
[344004964,1733179848923,-500.0,0.00027397,7]
[344004965,1733179848932,-272.06717,0.00027397,7]
[344004966,1733179848942,-500.0,0.00027397,7]
[344004967,1733179848952,-500.0,0.00027397,7]
[344004968,1733179848962,-500.0,0.00027397,2]
[344004969,1733179848972,-500.0,0.00027397,7]
[344004970,1733179848981,-500.0,0.00027397,7]
[344004971,1733179848991,-500.0,0.00027397,7]
[344004972,1733179849001,-500.0,0.00027397,7]
[344004973,1733179849010,-272.06717,0.00027397,7]
[344004974,1733179849020,-507.98551668,0.00027397,7]
[344004975,1733179849030,-272.06717,0.00027397,7]
[344004976,1733179849040,-272.06717,0.00027397,7]
[344004977,1733179849049,-500.0,0.00027397,7]
[344004978,1733179849059,-272.067168,0.00027397,7]
[344004979,1733179849068,-500.0,0.00027397,7]
[344004980,1733179849078,-500.0,0.00027397,7]
[344004981,1733179849087,-152.074381,0.00027397,7]
[344004982,1733179849098,-151.0,0.000274,12]
[344004983,1733179849107,-151.0,0.000274,13]
[344004984,1733179849117,-1000.0,0.00027403,2]
[344004985,1733179849127,-1000.0,0.00027443,2]
[344004986,1733179849136,-198.798247,0.000275,2]
[344004987,1733179849146,-587.2942306,0.00027502,2]
[344004988,1733179849156,-1000.0,0.0002757,2]
[344004989,1733179849166,-3000.0,0.000276,2]
[344004990,1733179849175,-3000.0,0.0002761,2]
[344004991,1733179849185,-3000.0,0.0002762,2]
[344004992,1733179849195,-1000.0,0.00027621,2]
[344004993,1733179849204,-3000.0,0.0002763,2]
[344004994,1733179849214,-3000.0,0.0002764,2]
[344004995,1733179849223,-1778.14656152,0.00027647,2]
[344004996,1733179849233,-3000.0,0.0002765,2]
[344004997,1733179849242,-1425.78435947,0.00027655,2]
[344004998,1733179849251,-3000.0,0.0002766,2]
[344004999,1733179849262,-3000.0,0.0002767,2]
[344005000,1733179849271,-150.14,0.00027671,2]
[344005001,1733179849281,-500.0,0.00027671,7]
[344005002,1733179849290,-650.16,0.00027671,7]
[344005003,1733179849299,-886.14244538,0.00027671,7]
[344005004,1733179849309,-325.0099271,0.00027671,7]
[344005005,1733179849320,-500.0,0.00027671,7]
[344005006,1733179849329,-500.0,0.00027671,7]
[344005007,1733179849339,-208.6372343,0.00027671,7]
[344005008,1733179849349,-500.0,0.00027671,7]
[344005009,1733179849358,-507.83961539,0.00027671,7]
[344005010,1733179849368,-500.0,0.00027671,7]
[344005011,1733179849377,-500.0,0.00027671,7]
[344005012,1733179849387,-500.0,0.00027671,7]
[344005013,1733179849396,-500.0,0.00027671,7]
[344005014,1733179849406,-500.0,0.00027671,7]
[344005015,1733179849415,-513.63395917,0.00027671,7]
[344005016,1733179849424,-397.5726963,0.00027671,7]
[344005017,1733179849434,-500.0,0.00027671,7]
[344005018,1733179849444,-589.33677736,0.00027671,7]
[344005019,1733179849454,-500.0,0.00027671,7]
[344005020,1733179849463,-500.0,0.00027671,7]
[344005021,1733179849472,-500.0,0.00027671,7]
[344005022,1733179849481,-500.0,0.00027671,7]
[344005023,1733179849491,-500.0,0.00027671,7]
[344005024,1733179849501,-503.76181264,0.00027671,7]
[344005025,1733179849510,-500.0,0.00027671,7]
[344005026,1733179849519,-500.0,0.00027671,7]
[344005027,1733179849528,-500.0,0.00027671,7]
[344005028,1733179849538,-374.21036832,0.00027671,7]
[344005029,1733179849547,-500.0,0.00027671,7]
[344005030,1733179849557,-500.0,0.00027671,7]
[344005031,1733179849567,-500.0,0.00027671,7]
[344005032,1733179849576,-500.0,0.00027671,7]
[344005033,1733179849585,-500.0,0.00027671,7]
[344005034,1733179849595,-500.0,0.00027671,7]
[344005035,1733179849604,-500.0,0.00027671,7]
[344005036,1733179849613,-500.0,0.00027671,7]
[344005037,1733179849623,-507.35468819,0.00027671,7]
[344005038,1733179849632,-500.0,0.00027671,2]
[344005039,1733179849642,-507.692791,0.00027671,7]
[344005040,1733179849651,-500.0,0.00027671,7]
[344005041,1733179849660,-500.0,0.00027671,7]
[344005042,1733179849670,-506.64195881,0.00027671,7]
[344005043,1733179849679,-500.0,0.00027671,7]
[344005044,1733179849689,-500.0,0.00027671,7]
[344005045,1733179849699,-349.6560111,0.00027671,7]
[344005046,1733179849710,-500.0,0.00027671,7]
[344005047,1733179849720,-500.0,0.00027671,7]
[344005048,1733179849730,-500.0,0.00027671,7]
[344005049,1733179849794,-500.0,0.00027671,7]
[344005050,1733179849804,-500.0,0.00027671,7]
[344005051,1733179849813,-518.04520736,0.00027671,7]
[344005052,1733179849822,-500.0,0.00027671,7]
[344005053,1733179849831,-500.0,0.00027671,7]
[344005054,1733179849841,-258.20192588,0.00027671,7]
[344005055,1733179849850,-631.82150799,0.00027671,7]
[344005056,1733179849860,-500.0,0.00027671,7]
[344005057,1733179849870,-500.0,0.00027671,7]
[344005058,1733179849879,-500.0,0.00027671,7]
[344005059,1733179849888,-530.71135342,0.00027671,7]
[344005060,1733179849898,-500.0,0.00027671,7]
[344005061,1733179849907,-500.0,0.00027671,7]
[344005062,1733179849918,-500.0,0.00027671,7]
[344005063,1733179849927,-500.0,0.00027671,7]
[344005064,1733179849937,-500.0,0.00027671,7]
[344005065,1733179849946,-500.0,0.00027671,7]
[344005066,1733179849956,-500.0,0.00027671,7]
[344005067,1733179849966,-503.11046422,0.00027671,7]
[344005068,1733179849975,-500.0,0.00027671,7]
[344005069,1733179849984,-500.0,0.00027671,7]
[344005070,1733179849994,-500.0,0.00027671,7]
[344005071,1733179850004,-500.0,0.00027671,7]
[344005072,1733179850014,-500.0,0.00027671,7]
[344005073,1733179850026,-495.0,0.00027671,7]
[344005074,1733179850035,-500.0,0.00027671,7]
[344005075,1733179850045,-500.0,0.00027671,7]
[344005076,1733179850055,-500.0,0.00027671,7]
[344005077,1733179850064,-500.0,0.00027671,7]
[344005078,1733179850075,-500.0,0.00027671,7]
[344005079,1733179850086,-500.0,0.00027671,7]
[344005080,1733179850095,-500.0,0.00027671,7]
[344005081,1733179850105,-519.11398523,0.00027671,7]
[344005082,1733179850114,-503.94179379,0.00027671,7]
[344005083,1733179850124,-433.75752938,0.00027671,7]
[344005084,1733179850133,-500.45088556,0.00027671,7]
[344005085,1733179850142,-500.0,0.00027671,7]
[344005086,1733179850151,-500.0,0.00027671,7]
[344005087,1733179850160,-500.0,0.00027671,7]
[344005088,1733179850170,-500.0,0.00027671,7]
[344005089,1733179850179,-527.42,0.00027671,7]
[344005090,1733179850189,-500.0,0.00027671,7]
[344005091,1733179850198,-500.0,0.00027671,7]
[344005092,1733179850209,-500.0,0.00027671,7]
[344005093,1733179850218,-500.0,0.00027671,7]
[344005094,1733179850228,-500.0,0.00027671,7]
[344005095,1733179850237,-500.0,0.00027671,7]
[344005096,1733179850247,-500.0,0.00027671,7]
[344005097,1733179850256,-500.0,0.00027671,7]
[344005098,1733179850266,-522.32082916,0.00027671,7]
[344005099,1733179850276,-582.90178817,0.00027671,7]
[344005100,1733179850285,-500.0,0.00027671,7]
[344005101,1733179850295,-500.0,0.00027671,7]
[344005102,1733179850304,-480.96154284,0.00027671,7]
[344005103,1733179850313,-500.0,0.00027671,7]
[344005104,1733179850323,-500.0,0.00027671,7]
[344005105,1733179850332,-500.0,0.00027671,7]
[344005106,1733179850341,-500.0,0.00027671,7]
[344005107,1733179850350,-509.87027085,0.00027671,7]
[344005108,1733179850360,-500.0,0.00027671,7]
[344005109,1733179850370,-500.0,0.00027671,7]
[344005110,1733179850379,-500.0,0.00027671,7]
[344005111,1733179850388,-500.0,0.00027671,7]
[344005112,1733179850398,-500.0,0.00027671,7]
[344005113,1733179850407,-500.0,0.00027671,7]
[344005114,1733179850416,-500.0,0.00027671,7]
[344005115,1733179850426,-500.0,0.00027671,7]
[344005116,1733179850435,-500.0,0.00027671,7]
[344005117,1733179850444,-500.0,0.00027671,7]
[344005118,1733179850454,-500.0,0.00027671,7]
[344005119,1733179850463,-500.0,0.00027671,7]
[344005120,1733179850473,-500.0,0.00027671,7]
[344005121,1733179850482,-500.0,0.00027671,7]
[344005122,1733179850492,-500.0,0.00027671,7]
[344005123,1733179850501,-500.0,0.00027671,7]
[344005124,1733179850511,-526.140257,0.00027671,7]
[344005125,1733179850521,-500.0,0.00027671,7]
[344005126,1733179850531,-500.0,0.00027671,7]
[344005127,1733179850542,-500.0,0.00027671,7]
[344005128,1733179850551,-500.0,0.00027671,7]
[344005129,1733179850561,-500.0,0.00027671,7]
[344005130,1733179850570,-500.0,0.00027671,7]
[344005131,1733179850580,-500.0,0.00027671,7]
[344005132,1733179850589,-500.0,0.00027671,7]
[344005133,1733179850599,-500.0,0.00027671,7]
[344005134,1733179850608,-535.23953773,0.00027671,7]
[344005135,1733179850618,-500.0,0.00027671,7]
[344005136,1733179850627,-500.0,0.00027671,7]
[344005137,1733179850636,-500.0,0.00027671,7]
[344005138,1733179850646,-508.09685521,0.00027671,7]
[344005139,1733179850656,-502.09616373,0.00027671,7]
[344005140,1733179850665,-1165.97,0.00027671,7]
[344005141,1733179850674,-500.0,0.00027671,7]
[344005142,1733179850683,-500.0,0.00027671,7]
[344005143,1733179850693,-500.0,0.00027671,7]
[344005144,1733179850702,-500.0,0.00027671,7]
[344005145,1733179850712,-500.0,0.00027671,7]
[344005146,1733179850721,-500.0,0.00027671,7]
[344005147,1733179850730,-500.0,0.00027671,7]
[344005148,1733179850740,-500.0,0.00027671,7]
[344005149,1733179850749,-529.86,0.00027671,7]
[344005150,1733179850760,-500.0,0.00027671,7]
[344005151,1733179850772,-500.0,0.00027671,7]
[344005152,1733179850781,-500.0,0.00027671,7]
[344005153,1733179850791,-500.0,0.00027671,7]
[344005154,1733179850800,-500.0,0.00027671,7]
[344005155,1733179850810,-500.0,0.00027671,7]
[344005156,1733179850870,-500.0,0.00027671,7]
[344005157,1733179850880,-500.0,0.00027671,7]
[344005158,1733179850890,-500.0,0.00027671,7]
[344005159,1733179850899,-122.2342372,0.00027671,7]
[344005160,1733179851013,-377.7657628,0.00027671,7]
[344005161,1733179851022,-500.0,0.00027671,7]
[344005162,1733179851031,-500.0,0.00027671,7]
[344005163,1733179851040,-156.43301645,0.00027671,7]
[344005164,1733179851049,-500.0,0.00027671,7]
[344005165,1733179851059,-500.0,0.00027671,7]
[344005166,1733179851068,-149.48706715,0.00027671,7]
[344005167,1733179851219,-166.24318,0.00027397,7]
[344005168,1733179851229,-166.24318,0.00027397,7]
[344005169,1733179851238,-166.24318,0.00027397,7]
[344005170,1733179851248,-350.51293285,0.00027671,7]
[344005171,1733179851258,-500.0,0.00027671,7]
[344005172,1733179851267,-500.0,0.00027671,7]
[344005173,1733179851276,-500.0,0.00027671,7]
[344005174,1733179851286,-500.0,0.00027671,7]
[344005175,1733179851295,-500.0,0.00027671,7]
[344005176,1733179851305,-500.0,0.00027671,7]
[344005177,1733179851314,-500.0,0.00027671,7]
[344005178,1733179851324,-500.0,0.00027671,7]
[344005179,1733179851333,-271.36187067,0.00027671,7]
[344005180,1733179851431,-166.24318,0.00025842,7]
[344005181,1733179851440,-408.751667,0.00025842,7]
[344005182,1733179851449,-166.24318,0.00026,7]
[344005183,1733179851460,-53.00307609,0.000269,7]
[344005184,1733179851472,-113.24010391,0.000269,7]
[344005185,1733179851481,-166.24318,0.00026977,7]
[344005186,1733179851491,-166.24318,0.00027397,7]
[344005187,1733179851500,-228.63812933,0.00027671,7]
[344005188,1733179851509,-500.0,0.00027671,7]
[344005189,1733179851519,-500.0,0.00027671,7]
[344005190,1733179851528,-500.0,0.00027671,7]
[344005191,1733179851537,-179.06,0.00027671,7]
[344005192,1733179851546,-500.0,0.00027671,7]
[344005193,1733179851556,-500.0,0.00027671,7]
[344005194,1733179851565,-500.0,0.00027671,7]
[344005195,1733179851574,-500.0,0.00027671,7]
[344005196,1733179851583,-550.10275565,0.00027671,7]
[344005197,1733179851593,-500.0,0.00027671,7]
[344005198,1733179851602,-500.0,0.00027671,7]
[344005199,1733179851611,-500.0,0.00027671,7]
[344005200,1733179851620,-500.0,0.00027671,7]
[344005201,1733179851629,-500.0,0.00027671,7]
[344005202,1733179851639,-500.0,0.00027671,7]
[344005203,1733179851648,-500.0,0.00027671,7]
[344005204,1733179851657,-500.0,0.00027671,7]
[344005205,1733179851666,-501.70088862,0.00027671,7]
[344005206,1733179851676,-500.0,0.00027671,7]
[344005207,1733179851739,-500.0,0.00027671,7]
[344005208,1733179851749,-500.0,0.00027671,7]
[344005209,1733179851759,-500.0,0.00027671,7]
[344005210,1733179851771,-500.0,0.00027671,7]
[344005211,1733179851780,-1703.86,0.00027671,7]
[344005212,1733179851790,-500.0,0.00027671,7]
[344005213,1733179851799,-500.0,0.00027671,7]
[344005214,1733179851810,-500.0,0.00027671,7]
[344005215,1733179851820,-500.0,0.00027671,7]
[344005216,1733179851829,-500.0,0.00027671,7]
[344005217,1733179851840,-206.07243793,0.00027671,7]
[344005218,1733179851851,-500.0,0.00027671,7]
[344005219,1733179851860,-500.0,0.00027671,7]
[344005220,1733179851870,-500.0,0.00027671,7]
[344005221,1733179851880,-500.0,0.00027671,7]
[344005222,1733179851889,-500.0,0.00027671,7]
[344005223,1733179851901,-500.0,0.00027671,7]
[344005224,1733179851911,-500.0,0.00027671,7]
[344005225,1733179851920,-500.0,0.00027671,7]
[344005226,1733179851930,-500.0,0.00027671,7]
[344005227,1733179851939,-500.0,0.00027671,7]
[344005228,1733179851949,-503.02038963,0.00027671,7]
[344005229,1733179851960,-500.0,0.00027671,7]
[344005230,1733179851970,-500.0,0.00027671,7]
[344005231,1733179851979,-500.0,0.00027671,7]
[344005232,1733179851989,-500.0,0.00027671,7]
[344005233,1733179851998,-500.0,0.00027671,7]
[344005234,1733179852008,-500.0,0.00027671,7]
[344005235,1733179852018,-500.0,0.00027671,7]
[344005236,1733179852027,-500.0,0.00027671,7]
[344005237,1733179852037,-500.0,0.00027671,7]
[344005238,1733179852047,-500.0,0.00027671,7]
[344005239,1733179852056,-500.0,0.00027671,7]
[344005240,1733179852066,-500.0,0.00027671,7]
[344005241,1733179852075,-500.0,0.00027671,7]
[344005242,1733179852085,-500.0,0.00027671,7]
[344005243,1733179852095,-435.22,0.00027671,7]
[344005244,1733179852105,-500.0,0.00027671,7]
[344005245,1733179852115,-500.0,0.00027671,7]
[344005246,1733179852124,-370.14048762,0.00027671,7]
[344005247,1733179852141,-166.24318,0.00027,7]
[344005248,1733179852151,-6304.6342688,0.00027671,7]
[344005249,1733179852162,-1928.92524358,0.00027671,7]
[344005250,1733179852172,-396.0181188,0.00027671,7]
[344005251,1733179852182,-483.2090918,0.00027671,7]
[344005252,1733179852359,-2970.89,0.0002508,10]
[344005253,1733179852369,-408.751667,0.00026597,7]
[344005254,1733179852378,-408.751667,0.000269,7]
[344005255,1733179852388,-150.01,0.00026974,2]
[344005256,1733179852398,-408.751667,0.00026977,7]
[344005257,1733179852407,-408.751667,0.00027,7]
[344005258,1733179852417,-166.24318,0.00027297,7]
[344005259,1733179852427,-408.751667,0.00027373,7]
[344005260,1733179852437,-166.24318,0.00027397,7]
[344005261,1733179852447,-166.24318,0.00027397,7]
[344005262,1733179852458,-166.24318,0.00027397,7]
[344005263,1733179852468,-166.243174,0.00027397,7]
[344005264,1733179852479,-16.7909082,0.00027671,7]
[344005265,1733179852489,-500.0,0.00027671,7]
[344005266,1733179852500,-506.53407503,0.00027671,7]
[344005267,1733179852510,-500.0,0.00027671,7]
[344005268,1733179852521,-500.0,0.00027671,7]
[344005269,1733179852531,-500.0,0.00027671,7]
[344005270,1733179852541,-500.0,0.00027671,7]
[344005271,1733179852550,-500.0,0.00027671,7]
[344005272,1733179852559,-500.0,0.00027671,7]
[344005273,1733179852569,-500.0,0.00027671,7]
[344005274,1733179852578,-500.0,0.00027671,7]
[344005275,1733179852587,-1089.16,0.00027671,7]
[344005276,1733179852596,-500.0,0.00027671,7]
[344005277,1733179852606,-500.0,0.00027671,7]
[344005278,1733179852615,-500.0,0.00027671,7]
[344005279,1733179852625,-3286.43,0.00027671,7]
[344005280,1733179852635,-500.0,0.00027671,7]
[344005281,1733179852644,-397.98050575,0.00027671,7]
[344005282,1733179852706,-500.0,0.00027671,7]
[344005283,1733179852716,-500.0,0.00027671,7]
[344005284,1733179852725,-501.04907303,0.00027671,7]
[344005285,1733179852735,-502.41838872,0.00027671,7]
[344005286,1733179852744,-500.0,0.00027671,7]
[344005287,1733179852753,-500.0,0.00027671,7]
[344005288,1733179852766,-500.0,0.00027671,7]
[344005289,1733179852775,-500.0,0.00027671,7]
[344005290,1733179852785,-500.0,0.00027671,7]
[344005291,1733179852794,-281.19062811,0.00027671,2]
[344005292,1733179852803,-500.0,0.00027671,7]
[344005293,1733179852813,-500.0,0.00027671,7]
[344005294,1733179852823,-500.0,0.00027671,7]
[344005295,1733179852832,-500.0,0.00027671,7]
[344005296,1733179852844,-500.0,0.00027671,7]
[344005297,1733179852853,-500.0,0.00027671,7]
[344005298,1733179852863,-500.0,0.00027671,7]
[344005299,1733179852872,-500.0,0.00027671,7]
[344005300,1733179852882,-500.0,0.00027671,7]
[344005301,1733179852891,-377.05309685,0.00027671,7]
[344005302,1733180534478,163.19526,0.00013973,2]
[344005370,1733181038006,-1169.27083333,0.0002,2]
[344005372,1733181038018,-163.19526,0.00021661,2]
[344005373,1733181038027,-18.13390673,0.00023895,11]
[344005383,1733181040174,-550.00392997,0.00023895,11]
[344005384,1733181040184,-300.0,0.00024285,2]
[344005385,1733181040194,-24900.0,0.00024286,2]
[344005386,1733181040211,-1069.00282212,0.0002499,2]
[344005387,1733181040221,-4078.0,0.00025,5]
[344005388,1733181040232,-1169.27083333,0.0002509,7]
[344005389,1733181040243,-196.761,0.00025507,10]
[344005390,1733181040253,-1069.00282206,0.00025777,2]
[344005391,1733181040264,-1169.27083333,0.00025842,7]
[344005392,1733181040275,-1169.27083333,0.00025842,7]
[344005393,1733181040286,-500.5,0.00026,31]
[344005394,1733181040296,-295.1,0.00026,31]
[344005395,1733181040307,-2978.567,0.00026081,2]
[344005396,1733181040316,-1069.00282206,0.00026565,2]
[344005397,1733181040327,-420.0,0.00026713,2]
[344005398,1733181040337,-490.0,0.00027,2]
[344005399,1733181040346,-175.0,0.00027,2]
[344005400,1733181040356,-3616.13006786,0.00027,2]
[344005401,1733181040366,-889.2899258,0.00027,2]
[344005402,1733181040375,-666.0,0.00027297,2]
[344005403,1733181040385,-33000.0,0.00027297,2]
[344005404,1733181040396,-1152.80810296,0.00027297,2]
[344005405,1733181040405,-1069.00282206,0.00027352,2]
[344005406,1733181040415,-1432.72,0.00027387,10]
[344005407,1733181040425,-2236.96,0.00027387,10]
[344005408,1733181040434,-1864.13,0.00027387,10]
[344005409,1733181040444,-1553.44,0.00027387,10]
[344005410,1733181040454,-500.0,0.00027396,2]
[344005411,1733181040465,-632.90525278,0.00027396,2]
[344005412,1733181040475,-432.62720197,0.00027396,2]
[344005413,1733181040485,-500.0,0.00027396,2]
[344005414,1733181040495,-500.0,0.00027396,2]
[344005415,1733181040505,-500.0,0.00027396,2]
[344005416,1733181040514,-292.82381181,0.00027396,2]
[344005417,1733181040524,-500.0,0.00027397,7]
[344005418,1733181040535,-500.0,0.00027397,7]
[344005419,1733181040545,-511.44879299,0.00027397,7]
[344005420,1733181040555,-337.61732681,0.00027397,7]
[344005421,1733181040564,-500.0,0.00027397,7]
[344005422,1733181040575,-500.0,0.00027397,7]
[344005423,1733181040584,-500.0,0.00027397,7]
[344005424,1733181040594,-500.0,0.00027397,7]
[344005425,1733181040603,-471.37464738,0.00027397,7]